Cogmind - Beta 14 @@@ ROGUE MODE // 2024.08.18 @ 06:58:57 Player: lexi^-^ Result: Destroyed by D-53 Grenadier with Mini Grenade Launcher Performance ------------- Evolutions (0) 0 Regions Visited (2) 400 Robots Destroyed (15) 75 Value Destroyed (274) 274 Prototype IDs (2) 40 Alien Tech Used (0) 0 Bonus (0) 0 TOTAL SCORE: 789 Bonus ------- None Cogmind --------- Core Integrity 0/250 Matter 249/300 Energy 148/150 System Corruption 1% Temperature Cool (0) Movement Rolling (90) Location -10/Mines Parts ------- > --- POWER (1) -------- Light Angular Momentum Engine > --- PROPULSION (2) --- Wheel Compact Wheel > --- UTILITY (2) ------ Small Storage Unit Medium Armor Plating > --- WEAPON (2) ------- Light Cannon > --- INVENTORY (8) ---- Medium Matter Pod (100) Sensor Array Medium Armor Plating Assault Rifle Light Cannon Peak State ------------ > --- POWER ------------ Light Angular Momentum Engine > --- PROPULSION ------- Wheel Compact Wheel > --- UTILITY ---------- Small Storage Unit Medium Armor Plating > --- WEAPON ----------- Light Cannon > --- INVENTORY -------- Medium Matter Pod Sensor Array Medium Armor Plating Assault Rifle Light Cannon [Rating: 11] Favorites ----------- Power Light Ion Engine Engine Light Ion Engine Propulsion Compact Wheel Wheel Compact Wheel Utility Small Storage Unit Device Sensor Array Storage Small Storage Unit Processor Signal Interpreter Protection Medium Armor Plating Weapon Assault Rifle Ballistic Gun Assault Rifle Ballistic Cannon Light Cannon Build | -11 -10 -10 ------- Run | Yrd Mat Min Slots Evolved . | . . . Power . | . . . Propulsion . | . . . Utility . | . . . Weapon . | . . . Parts Attached 17 | 6 5 6 Power 3 | 1 . 2 Engine 3 | 1 . 2 Core . | . . . Reactor . | . . . Propulsion 4 | 2 1 1 Treads . | . . . Leg . | . . . Wheel 4 | 2 1 1 Hover . | . . . Flight . | . . . Utility 6 | 1 2 3 Device 2 | . 1 1 Storage 1 | 1 . . Processor 1 | . . 1 Hackware . | . . . Protection 2 | . 1 1 Artifact . | . . . Weapon 4 | 2 2 . Energy Gun . | . . . Energy Cannon . | . . . Ballistic Gun 2 | 2 . . Ballistic Cannon 2 | . 2 . Launcher . | . . . Special Weapon . | . . . Impact Weapon . | . . . Slashing Weapon . | . . . Piercing Weapon . | . . . Special Melee Weapon . | . . . Unidentified Prototypes . | . . . Parts Lost 4 | . 1 3 Power 1 | . . 1 Propulsion 2 | . 1 1 Utility . | . . . Weapon 1 | . . 1 Highest Loss Streak 3 | . 1 3 To Critical Strikes . | . . . Average Slot Usage (%) 98 | . 98 99 Engine 13 | . 14 13 Wheel 27 | . 27 28 Device 12 | . 11 13 Storage 14 | . 14 14 Ballistic Gun 18 | . 25 . Ballistic Cannon 9 | . 2 27 Peak Build Rating 11 | 6 8 11 Average Rating 8 | 4 7 8 On Entrance 4 | . 6 8 Naked Turns . | . . . Heaviest Build 24 | 12 19 24 Greatest Support 26 | 26 26 26 Greatest Overweight (x) . | . . . Average Overweight (x) . | . . . Largest Inventory Capacity 8 | 8 8 8 Average Capacity 7 | 7 8 8 Most Carried 8 | 2 8 8 Average Carried 6 | . 6 7 Final Capacity 8 | 8 8 8 Final Carried 8 | 2 8 5 Class Distribution -------------------- 100% | Mutant Dominant Class ---------------- Mutant | -10/Materials Mutant | -10/Mines Resources | -11 -10 -10 ----------- Run | Yrd Mat Min Matter Collected 842 | 260 380 202 Remotely . | . . . Salvage Created 512 | . 414 98 Parts 27 | . 23 4 Haulers Intercepted 1 | . 1 . Recyclers Shooed . | . . . Parts Field Recycled . | . . . Retrieved Matter . | . . . Parts Self-Destructed . | . . . Prevented . | . . . Kills | -11 -10 -10 ------- Run | Yrd Mat Min Combat Hostiles Destroyed 8 | . 6 2 Guns 6 | . 6 . Cannons 2 | . . 2 Classes Destroyed 6 | . 6 . Worker 2 | . 2 . Hauler 1 | . 1 . Recycler 2 | . 1 1 Watcher 2 | . 2 . Swarmer 3 | . 3 . Grunt 5 | . 3 2 Best Kill Streak 6 | . 6 2 Combat Bots Only 3 | . 3 1 Max Kills in Single Turn 2 | . 2 1 Gunslinging . | . . . Exploded . | . . . Melee . | . . . Uniques/NPCs Destroyed . | . . . Combat | -11 -10 -10 -------- Run | Yrd Mat Min Hostile Shots Fired 56 | . 32 24 Missed 11 | . 7 4 Damage Taken 892 | . 268 624 Core 262 | . 40 222 Absorbed by Shields . | . . . Core Remaining (%) 100 | 100 . . Volleys Fired 70 | . 59 11 Largest 2 | . 2 2 Hottest 70 | . 70 70 Shots Fired 141 | . 118 23 Gun 112 | . 112 . Cannon 29 | . 6 23 Launcher . | . . . Special . | . . . Kinetic 141 | . 118 23 Thermal . | . . . Explosive . | . . . Electromagnetic . | . . . Robot Hit Streak 10 | . 10 3 Robot Miss Streak 5 | . 5 3 Penetration Max . | . . . Secondary Targets . | . . . Shots Hit Robots 65 | . 54 11 Core Hits 25 | . 21 4 Critical Kills . | . . . Critical Parts Destroyed . | . . . Critical Strikes 1 | . . 1 Blast 1 | . . 1 Melee Attacks . | . . . Impact . | . . . Slashing . | . . . Piercing . | . . . Sneak Attacks . | . . . Combat Hostiles . | . . . Follow-up Attacks . | . . . Damage Inflicted 940 | . 730 210 Guns 696 | . 696 . Cannons 229 | . 19 210 Explosions . | . . . Melee . | . . . Ramming 15 | . 15 . Kinetic 925 | . 715 210 Thermal . | . . . Explosive . | . . . Electromagnetic . | . . . Impact . | . . . Slashing . | . . . Piercing . | . . . Highest Corruption 1 | . 1 1 Average Corruption 1 | . 1 1 Corruption Purged . | . . . Corruption Blocked . | . . . Effects 3 | . . 3 Message Errors 2 | . . 2 Misfires 1 | . . 1 Overload Shots . | . . . Overflow Damage . | . . . Projectiles . | . . . Explosions . | . . . Melee . | . . . Knockbacks 3 | . 1 2 Impact . | . . . Kinetic 3 | . 1 2 Secondary . | . . . Self-Inflicted Damage 7 | . 7 . Shots . | . . . Rammed 2 | . 2 . Targets Rammed 2 | . 2 . Kicked . | . . . Crushed . | . . . Highest Temperature 86 | . 20 86 Average Temperature 26 | . 8 33 Received Heat Transfer 183 | . 120 63 Siege Activations . | . . . Robots Corrupted . | . . . Combat Hostiles . | . . . Parts Fried . | . . . Impact Corruptions . | . . . Robots Melted . | . . . Combat Hostiles . | . . . Parts Melted . | . . . Heat Transferred . | . . . Parts Sabotaged . | . . . Parts Stolen . | . . . Parts Stripped . | . . . Power Chain Reactions . | . . . Alert | -11 -10 -10 ------- Run | Yrd Mat Min Peak Influence 180 | . 180 85 Initial 15 | . . 15 Average 46 | . 52 38 Maximum Alert Level . | . . . Low Security (%) 100 | 100 100 100 Level 1 . | . . . Level 2 . | . . . Level 3 . | . . . Level 4 . | . . . Level 5 . | . . . High Security . | . . . Max Security . | . . . Squads Dispatched 2 | . 2 . Investigation 1 | . 1 . Extermination . | . . . Reinforcement 1 | . 1 . Assault . | . . . Garrison . | . . . Intercept . | . . . Searches Triggered . | . . . Construction Impeded . | . . . Haulers Reinforced . | . . . Active Scanning Responses . | . . . Cargo Convoy Interrupts . | . . . Stealth | -11 -10 -10 --------- Run | Yrd Mat Min Distress Signals 1 | . 1 . Communications Jammed . | . . . Distress Signals . | . . . Times Spotted 27 | . 15 12 Peak Tracking Total 10 | . 3 10 Tactical Retreats 4 | . 3 1 Traps | -11 -10 -10 ------- Run | Yrd Mat Min Traps Triggered 2 | . 2 . Indirectly . | . . . Trap Hack Attempts . | . . . Triggered . | . . . Disarmed 6 | . 6 . Reprogrammed . | . . . Reused . | . . . Traps Extracted . | . . . Installed . | . . . Triggered . | . . . Machines | -11 -10 -10 ---------- Run | Yrd Mat Min Machines Disabled . | . . . Max in Single Turn . | . . . Machines Repaired . | . . . Machines Dismantled . | . . . Machines Sabotaged . | . . . Overloaded Fab Kills . | . . . Hacking | -11 -10 -10 --------- Run | Yrd Mat Min Machines Accessed 2 | . 2 . Terminals 2 | . 2 . Fabricators . | . . . Repair Stations . | . . . Recycling Units . | . . . Scanalyzers . | . . . Garrison Access . | . . . Total Hacks 8 | . 8 . Successful 4 | . 4 . Failed 4 | . 4 . Catastrophic . | . . . Database Lockouts . | . . . Manual . | . . . Terminals 8 | . 8 . Fabricators . | . . . Repair Stations . | . . . Recycling Units . | . . . Scanalyzers . | . . . Garrison Access . | . . . Terminal Hacks 4 | . 4 . Prototype ID Bank 1 | . 1 . Locate Traps 1 | . 1 . Disarm Traps 1 | . 1 . Dispatch Records 1 | . 1 . Fabricator Hacks . | . . . Repair Station Hacks . | . . . Recycling Unit Hacks . | . . . Scanalyzer . | . . . Garrison Access Hacks . | . . . Unauthorized Hacks . | . . . Terminals . | . . . Fabricators . | . . . Repair Stations . | . . . Recycling Units . | . . . Scanalyzers . | . . . Garrison Access . | . . . Data Cores Recovered . | . . . Used . | . . . Hacking Detections 2 | . 2 . Full Trace Events . | . . . Feedback Events . | . . . Feedback Blocked . | . . . Robot Schematics Acquired . | . . . Robots Built . | . . . Authchips . | . . . Time . | . . . Total Robot Build Rating . | . . . Part Schematics Acquired . | . . . Parts Built . | . . . Authchips . | . . . Time . | . . . Total Part Build Rating . | . . . Parts Repaired . | . . . Time . | . . . Parts Recycled . | . . . Recycled Matter . | . . . Retrieved Matter . | . . . Retrieved Components . | . . . Parts Scanalyzed . | . . . Part Schematics Acquired . | . . . Parts Damaged . | . . . Bothacking | -11 -10 -10 ------------ Run | Yrd Mat Min Used RIF Installer . | . . . Robots Hacked . | . . . Non-combat . | . . . Combat . | . . . Robot Hacks Applied . | . . . Relay Couplers Released . | . . . Fabnet Peak Effective % . | . . . Robots Rewired . | . . . Allies Hacked . | . . . Hacks Repelled . | . . . Allies | -11 -10 -10 -------- Run | Yrd Mat Min Total Allies . | . . . Largest Group . | . . . Highest-Rated Group . | . . . Highest-Rated Ally . | . . . Total Orders . | . . . Ally Attacks . | . . . Total Damage . | . . . Kills . | . . . Allies Corrupted . | . . . Allies Melted . | . . . Intel | -11 -10 -10 ------- Run | Yrd Mat Min Robot Analysis Total . | . . . Derelict Logs Recovered 1 | . . 1 Drone Launches . | . . . Drone Recoveries . | . . . Exploration | -11 -10 -10 ------------- Run | Yrd Mat Min Turns Passed 1322 | 53 906 363 Spaces Moved 1068 | 48 700 320 Core 2 | 2 . . Treads . | . . . Legs . | . . . Wheels 1066 | 46 700 320 Hover . | . . . Flight . | . . . Fastest Speed 50 | 50 90 90 Average Speed 89 | 89 90 90 Slowest Speed 100 | 100 90 90 Overloaded Moves . | . . . Propulsion Burnouts . | . . . Robots Hopped . | . . . Cave-ins Triggered . | . . . Exploration Rate (%) 34 | 4 43 57 Regions Visited 2 Branch Regions 1 Pre-discovered Areas . | . . . Known Exits Taken . | . . . Unknown Exits Taken 2 | 1 1 . Scrap Searched 1 | . . 1 Spaces Dug . | . . . Terrain Destroyed . | . . . Melee . | . . . Projectile . | . . . AOE . | . . . Terrain Rammed . | . . . Walls Destroyed . | . . . Machines Disabled . | . . . Actions | -11 -10 -10 --------- Run | Yrd Mat Min Total 1285 | 55 857 373 Wait 113 | . 81 32 Move 1066 | 47 699 320 Hop . | . . . Pick Up 11 | 2 8 1 Fast Attach 10 | 6 3 1 Attach 4 | . 1 3 Detach . | . . . Swap 3 | . 1 2 Drop 6 | . 3 3 Fire 70 | . 59 11 Melee . | . . . Ram 2 | . 2 . Kick . | . . . Crush . | . . . Escape Stasis . | . . . Rewire . | . . . Trap . | . . . Miscellaneous . | . . . Route ------- -11/Scrapyard -10/Materials -10/Mines (discovered 1 exit: *Mat) History --------- Turn | Location | Event 29 | -11/Scrapyard | Discovered new exit (range 16) 54 | -11/Scrapyard | Entered Materials 300 | -10/Materials | Build established: Mutant 774 | -10/Materials | Discovered new exit (range 12) 960 | -10/Materials | Entered Mines 961 | -10/Mines | Joined a pair of Derelicts in attacking an 0b10 outpost 1230 | -10/Mines | Discovered new exit (range 11) 1243 | -10/Mines | Identified exit to Materials 1285 | -10/Mines | Assembled infested the area 1312 | -10/Mines | Core integrity fell below 50% 1318 | -10/Mines | Core integrity fell below 20% 1323 | -10/Mines | Destroyed by D-53 Grenadier with Mini Grenade Launcher Last Messages --------------- 01243_ EXIT=IDENTIFIED: MATERIALS 01244_ Discarded Signal Interpreter. 01250_ UUPVFKM3PZ% J4A YQ/TS/C 01285_ ALERT: Infestation in the mines, dispatching Demolisher response squad. 01294_ C-30 ARC bursts open, deploying its payload. 01294_ D-53 Grenadier unfolds itself. 01309_ as-54550 destroyed. 01309_ Imp. Ion Engine destroyed. 01311_ YE3PRCCMV1|TD,X#S0B|036Z, UC 01311_ Wheel destroyed. 01313_ Lgt. Cannon destroyed. 01313_ as-31620 destroyed. 01314_ The unstable cave ceiling collapses. 01315_ as-37564 destroyed. 01317_ The unstable cave ceiling collapses. 01317_ as-54055 destroyed. 01319_ The unstable cave ceiling collapses. 01323_ as-20036 destroyed. Map ----- +----------------------------------------------------+ | ???????????????????????????????? #????## # | | ?????????????????????????????????# ###### # | | ?????????????????????????????????# | | ?????????????????????????????????# | | ?????????????????????????????????# | | ?????????????????????????????????# | | ?????????????????????????????????## ## | | ??????????????????????????????????# ### | | ???????????????????????????????#### #?# | | ??????????????????????????####?# #?## | | ?????????????????????????## ### #??### # | | ?????????????????????????# ####????# ## | | ?????????????????????????# #####???????# #? | | ?????????????????????????# ##???????????? #? | | ????????????????????####### ##???????????? #? | | ???????????????????##" "## ##???????????###? | | ???????????????????#!! ![# ##?????????????? | | ???????????????????#/! !!# ##????????????? | | ???????????????????## ## ########?????? | | ???????????????????###+;### #??? | | ???????????????????# #########?????? | | ??????????########## % ##?????????????? | | ??????????# # ##??????????????? | | ??????????# ##???????????????? | | ??????????# #### ##????????????????? | | ??????????# #??# @ ##???????????????? | | ??????????# #??## *# #???????????????? | | ???????#### #???## %# ##???????????????? | | ???????# #????#* # ##??????????????? | | ???????# #????# =# #????????????? | | ???????# #####????#%= #????????????? | | ???????# #????????#%%# a #????????????? | | ???????# ###??????#= # #???????????? | | ??????## ##?????# # d % ""???????? | | ??????# #?????#*%# d ??????? | | ??????# #?????#%%# ## ###?????? | | ??????## ##????#!%## # #?? ##???????? | | ??????## ####?# ## ## # ###?##????????? | | ??????# < ### ####?### # ##??????????? | | ?????# """ #????## #??????????? | | ????# """ ###### #??????????? | | ????# """ "%" #??????? | | ????# " ### # | | ????## ### ####### #? | | ?????####??## ##?????### ##??? | | ????????????### ##????????##### ##???? | | ??????????????## ###??????????????## ##????? | | ???????????????####??????????????????####?????? | | ??????????????????????????????????????????????? | | | +----------------------------------------------------+ Best States ------------- Heat Dissipation 25 Energy Generation 18 Energy Capacity 265 Matter Stores 300 Matter Capacity 300 Sight Range 16 Robot Scan Range 14 Terrain Scan Density 10 Armor Coverage 225 Evasion (%) 42 Item Schematics ----------------- None Robot Schematics ------------------ None Fabricated ------------ Nothing Alien Tech Used ----------------- None Achievements -------------- None Challenges ------------ None Game ------ Seed SalvageSmartbombSteel Manual? 0 Play Time 00:18:16 Cumulative 56.3 hours Start 2024.08.18 @ 06:41:39 End 2024.08.18 @ 06:58:57 Sessions 1 Manual Loads 0 Difficulty Rogue Special Mode None Game No. 35 Rogue 25 Adventurer 10 Explorer 0 Win Type - Total 0 Types 0/0/0/0/0/0/0/0/0 Lore% 13 Gallery% 34 Achievement% 26 Wizard Run 0 Options --------- Layout 1 ASCII 0 Keyboard 0 Movement Mouse Keybinds 0 Fullscreen 2 Font 24/Smallcaps Map View 50x35 Zoom Use 0% Tactical HUD 1 Map Filters NONE Filters NONE Steam 1 RUN: cd1fe46c-16b1-4c90-96d4-9bdf38462e2e